bitfinex/quotes_BTCUSD_20250601
["timestamp","ask_amount","ask_price","bid_price","bid_amount"]
[1748804366175,0.0451408,104870.0,104860.0,0.75081457]
[1748804366373,0.0451408,104870.0,104860.0,0.74187602]
[1748804366580,0.007,104870.0,104860.0,0.74187538]
[1748804367026,0.007,104870.0,104860.0,0.74675948]
[1748804367245,0.01653479,104870.0,104860.0,0.75346297]
[1748804367452,0.01653479,104870.0,104860.0,0.74675948]
[1748804367856,0.01653479,104870.0,104860.0,0.75346296]
[1748804368030,0.01653479,104870.0,104860.0,0.76463545]
[1748804368211,0.01653479,104870.0,104860.0,0.75326294]
[1748804368417,0.007,104870.0,104860.0,1.61620908]
[1748804368620,0.007,104870.0,104860.0,1.61620863]
[1748804368994,0.007,104870.0,104860.0,1.62919866]
[1748804369168,0.007,104870.0,104860.0,1.62919854]
[1748804369372,0.01906441,104900.0,104890.0,0.21927623]
[1748804369580,0.01906441,104900.0,104890.0,0.66518122]
[1748804369581,0.03812936,104900.0,104890.0,0.66518122]
[1748804369986,0.02859666,104900.0,104890.0,0.66518122]
[1748804370185,0.038129,104900.0,104890.0,0.67188349]
[1748804370390,0.038129,104900.0,104890.0,0.66518122]
[1748804370391,0.01906423,104900.0,104890.0,0.66518122]
[1748804370589,0.01906423,104900.0,104890.0,0.68305369]
[1748804370590,0.02859666,104900.0,104890.0,0.68305369]
[1748804370747,0.02859657,104900.0,104890.0,0.67188339]
[1748804370950,0.02859657,104900.0,104890.0,0.66518122]
[1748804371179,0.02859657,104900.0,104890.0,0.67188339]
[1748804371387,0.03812909,104900.0,104890.0,0.66518122]
[1748804371546,0.02859657,104900.0,104890.0,0.66518122]
[1748804371747,0.05212909,104900.0,104890.0,0.68305359]
[1748804372125,0.04259657,104900.0,104890.0,0.68975573]
[1748804372350,0.052129,104900.0,104890.0,0.68967573]
[1748804372760,0.06166161,104900.0,104890.0,0.68967576]
[1748804372965,0.03306423,104900.0,104890.0,0.68958037]
[1748804373353,0.014,104900.0,104890.0,0.68958037]
[1748804373582,0.03306441,104900.0,104890.0,0.66510122]
[1748804373782,0.03306441,104900.0,104890.0,0.81290424]
[1748804373783,0.02353216,104900.0,104890.0,0.81290424]
[1748804373954,0.0190645,104900.0,104890.0,0.80177735]
[1748804374194,0.01906441,104900.0,104890.0,0.81958037]
[1748804374402,0.009,104900.0,104890.0,0.82058037]
[1748804374808,0.009,104900.0,104890.0,0.80277464]
[1748804375008,0.009,104900.0,104890.0,0.82423196]
[1748804375287,0.009,104900.0,104890.0,0.81755847]
[1748804375513,0.009,104900.0,104890.0,0.81755842]
[1748804375648,0.009,104900.0,104890.0,0.79976318]
[1748804375855,0.009,104900.0,104890.0,1.23641776]
[1748804376058,0.009,104900.0,104890.0,1.25421216]
[1748804376240,0.009,104900.0,104890.0,1.25909558]
[1748804376447,0.009,104900.0,104890.0,1.25421216]
[1748804376857,0.7123593,104930.0,104910.0,0.20970254]
[1748804377059,1.1559193,104930.0,104920.0,0.5162323]
[1748804377257,0.090708,104930.0,104920.0,0.63114773]
[1748804377485,0.11929711,104930.0,104920.0,0.63114773]
[1748804377834,0.11929711,104930.0,104920.0,0.63419731]
[1748804378038,0.12897323,104930.0,104920.0,0.63419731]
[1748804378449,0.13697323,104930.0,104920.0,0.64186929]
[1748804378674,0.13697323,104930.0,104920.0,0.63214773]
[1748804378825,0.32757648,104930.0,104920.0,0.64040925]
[1748804379031,0.13697323,104930.0,104920.0,0.63214773]
[1748804379235,0.09885405,104930.0,104920.0,0.63214773]
[1748804379433,0.09885405,104930.0,104920.0,1.10558835]
[1748804379635,6e-05,104940.0,104930.0,0.24999263]
[1748804379813,6e-05,104940.0,104930.0,1.32465933]
[1748804380026,0.0156644,104950.0,104940.0,0.24997175]
[1748804380240,0.0156644,104950.0,104940.0,0.34582605]
[1748804380451,0.0156644,104950.0,104940.0,0.10254898]
[1748804380452,0.234815,104950.0,104940.0,0.10254898]
[1748804380649,0.03471991,104950.0,104940.0,0.62450571]
[1748804380852,0.03471991,104950.0,104940.0,0.63098605]
[1748804381178,0.0156644,104950.0,104940.0,0.63403484]
[1748804382181,0.0156644,104950.0,104940.0,0.64270494]
[1748804382386,0.02519192,104950.0,104940.0,0.65382187]
[1748804382586,0.0156644,104950.0,104940.0,0.63603484]
[1748804382921,0.02519192,104950.0,104940.0,0.63603484]
[1748804383429,0.02519192,104950.0,104940.0,0.65382183]
[1748804383573,0.02519192,104950.0,104940.0,0.64270496]
[1748804383776,0.02519192,104950.0,104940.0,0.78382183]
[1748804384256,0.02519192,104950.0,104940.0,0.78365283]
[1748804384459,0.02519192,104950.0,104940.0,0.78365281]
[1748804384601,0.02519192,104950.0,104940.0,0.46777281]
[1748804384811,0.02519192,104950.0,104940.0,0.78060401]
[1748804384812,0.05377595,104950.0,104940.0,0.78060401]
[1748804384983,0.0442477,104950.0,104940.0,0.76290605]
[1748804385181,0.05377586,104950.0,104940.0,0.76290605]
[1748804385432,0.0442477,104950.0,104940.0,0.76290605]
[1748804386236,0.36170774,104950.0,104940.0,0.132]
[1748804386799,0.36170774,104950.0,104940.0,0.002]
[1748804386800,0.70170774,104950.0,104940.0,0.002]
[1748804388037,0.70170774,104950.0,104920.0,0.21921379]
[1748804388038,0.01906113,104920.0,104910.0,0.21923415]
[1748804388285,0.34503743,104930.0,104920.0,0.5159523]
[1748804388532,0.34503743,104930.0,104920.0,0.6118066]
[1748804389447,0.34503743,104930.0,104920.0,0.92133721]
[1748804389712,0.33550754,104930.0,104920.0,0.3958543]
[1748804389969,0.33550754,104930.0,104920.0,0.92129777]
[1748804390149,0.33550754,104930.0,104920.0,0.60553777]
[1748804390353,0.33550754,104930.0,104920.0,0.92129777]
[1748804390533,0.33550754,104930.0,104920.0,0.93082865]
[1748804391389,0.33550754,104930.0,104920.0,0.93582865]
[1748804392346,0.33550754,104930.0,104920.0,0.95357261]
[1748804393109,0.33550754,104930.0,104920.0,0.41860907]
[1748804393311,0.33550754,104930.0,104920.0,0.41038537]
[1748804393544,0.33550754,104930.0,104920.0,0.92625777]
[1748804393769,0.33550754,104930.0,104920.0,0.94401269]
[1748804393892,0.33550754,104930.0,104920.0,0.91672679]
[1748804394093,0.32597738,104930.0,104920.0,0.92625777]
[1748804394571,0.32597738,104930.0,104920.0,0.4008543]
[1748804394791,0.32597738,104930.0,104920.0,0.305]
[1748804395553,0.32597738,104930.0,104920.0,0.005]
[1748804396491,0.22261738,104930.0,104920.0,0.2051523]
[1748804396693,0.32597738,104930.0,104920.0,0.2051523]
[1748804396897,0.43620916,104940.0,104930.0,0.2096633]
[1748804397093,0.17307537,104940.0,104930.0,0.54440261]
[1748804397266,0.35317509,104950.0,104930.0,0.6211965]
[1748804397510,0.01905759,104940.0,104930.0,0.63377576]
[1748804397714,0.02858648,104940.0,104930.0,0.64330592]
[1748804397875,0.02858648,104940.0,104930.0,0.64330601]
[1748804398080,0.22870082,104940.0,104930.0,0.64330601]
[1748804398344,0.22870082,104940.0,104930.0,0.65283553]
[1748804398345,0.03811555,104940.0,104930.0,0.65283553]
[1748804398486,0.02858657,104940.0,104930.0,0.65383553]
[1748804398906,0.02858657,104940.0,104930.0,0.6705879]
[1748804399114,0.02858657,104940.0,104930.0,0.65283553]
[1748804399565,0.01905741,104940.0,104930.0,0.67058783]
[1748804399737,0.01905741,104940.0,104930.0,0.65283553]
[1748804400146,0.02605732,104940.0,104930.0,0.65283553]
[1748804400353,0.02605741,104940.0,104930.0,0.65283553]
[1748804400749,0.02605741,104940.0,104930.0,0.65949253]
[1748804400917,0.02605741,104940.0,104930.0,0.65283553]
[1748804401127,0.007,104940.0,104930.0,0.65949244]
[1748804401341,0.007,104940.0,104930.0,0.68747629]
[1748804402187,0.007,104940.0,104930.0,0.71010971]
[1748804402461,0.007,104940.0,104930.0,0.99235971]
[1748804402942,0.007,104940.0,104930.0,0.7101186]
[1748804403154,0.007,104940.0,104930.0,0.69235971]
[1748804403380,0.007,104940.0,104930.0,0.70647784]
[1748804403667,0.007,104940.0,104930.0,0.68871895]
[1748804404084,0.007,104940.0,104930.0,0.70647784]
[1748804404296,0.007,104940.0,104930.0,0.68871895]
[1748804405009,0.007,104940.0,104930.0,0.7065075]
[1748804405228,0.007,104940.0,104930.0,0.69538911]
[1748804405460,0.007,104940.0,104930.0,0.68871841]
[1748804405702,0.007,104940.0,104930.0,0.37303841]
[1748804405924,0.007,104940.0,104930.0,0.71301841]
[1748804406143,0.007,104940.0,104930.0,0.69522986]
[1748804406379,0.007,104940.0,104930.0,0.71302]
[1748804406828,0.007,104940.0,104930.0,0.69522973]
[1748804407075,0.007,104940.0,104930.0,0.71301993]
[1748804407557,0.007,104940.0,104930.0,0.66649993]
[1748804407777,0.007,104940.0,104930.0,1.87591836]
[1748804408026,0.0156644,104950.0,104940.0,0.59127175]
[1748804408266,0.0156644,104950.0,104940.0,0.6580748]
[1748804408496,0.0156644,104950.0,104940.0,0.97838538]
[1748804408924,0.0156644,104950.0,104940.0,0.9961737]
[1748804409131,0.0156644,104950.0,104940.0,0.97838538]
[1748804409336,0.0156644,104950.0,104940.0,1.00217368]
[1748804409545,0.0156644,104950.0,104940.0,1.02315599]
[1748804409769,0.0156644,104950.0,104940.0,1.0116148]
[1748804409978,0.0156644,104950.0,104940.0,0.70104417]
[1748804410182,0.0156644,104950.0,104940.0,1.0115748]
[1748804410602,0.0156644,104950.0,104940.0,1.02936241]
[1748804410823,0.0156644,104950.0,104940.0,1.0115748]
[1748804411238,0.0156644,104950.0,104940.0,1.02936247]
[1748804411449,0.0156644,104950.0,104940.0,1.0115748]
[1748804411653,0.0156644,104950.0,104940.0,1.0342304]
[1748804411859,0.0156644,104950.0,104940.0,0.68534273]
[1748804412078,0.05041991,104950.0,104940.0,0.33259347]
[1748804412286,0.05041991,104950.0,104940.0,0.67040365]
[1748804412287,0.02519202,104950.0,104940.0,0.67040365]
[1748804412495,0.0156644,104950.0,104940.0,0.65928543]
[1748804412705,0.0156644,104950.0,104940.0,0.67040382]
[1748804412919,0.02519192,104950.0,104940.0,0.65261415]
[1748804413136,0.02519192,104950.0,104940.0,0.65924515]
[1748804413346,0.02519192,104950.0,104940.0,0.65257415]
[1748804413779,0.03471963,104950.0,104940.0,0.36171809]
[1748804413981,0.03471963,104950.0,104940.0,0.65257415]
[1748804414189,0.02519192,104950.0,104940.0,0.65257415]
[1748804414395,0.03471954,104950.0,104940.0,0.65257415]
[1748804414617,0.03471954,104950.0,104940.0,0.67036611]
[1748804414819,0.03471954,104950.0,104940.0,0.65924613]
[1748804415039,0.04424725,104950.0,104940.0,0.65257415]
[1748804415246,0.04424725,104950.0,104940.0,0.33725415]
[1748804415247,0.05377505,104950.0,104940.0,0.33725415]
[1748804415510,0.25558738,104950.0,104940.0,0.02684688]
[1748804415744,0.25558738,104950.0,104940.0,0.00904875]
[1748804415977,0.25558738,104950.0,104940.0,0.006]
[1748804416457,0.04424779,104950.0,104940.0,0.32340829]
[1748804416700,0.05377577,104950.0,104940.0,0.3240748]
[1748804416921,0.05377577,104950.0,104940.0,0.3180748]
[1748804417140,0.05377568,104950.0,104940.0,0.34252624]
[1748804417606,0.05377568,104950.0,104940.0,0.34251905]
[1748804417812,0.05377568,104950.0,104940.0,0.34085244]
[1748804418019,0.05377568,104950.0,104940.0,0.34751911]
[1748804418241,0.06330384,104950.0,104940.0,0.32474147]
[1748804418448,0.06730384,104950.0,104940.0,0.3180748]
[1748804418662,0.06730384,104950.0,104940.0,0.3425193]
[1748804418877,0.06730457,104950.0,104940.0,0.33585262]
[1748804419078,0.06730457,104950.0,104940.0,0.3180748]
[1748804419852,0.10304,104950.0,104940.0,0.33585262]
[1748804420036,0.10304,104950.0,104940.0,0.3180748]
[1748804420240,0.12209614,104950.0,104940.0,0.3180748]
[1748804420646,0.12209614,104950.0,104940.0,0.64251933]
[1748804420846,0.12209614,104950.0,104940.0,0.6180748]
[1748804421028,0.12209614,104950.0,104940.0,0.63585251]
[1748804421208,0.1411521,104950.0,104940.0,0.63585255]
[1748804421405,0.1411521,104950.0,104940.0,0.6180748]
[1748804421590,0.1411521,104950.0,104940.0,0.63585256]
[1748804421802,0.14115264,104950.0,104940.0,0.3180748]
[1748804421999,0.14115237,104950.0,104940.0,0.33585256]
[1748804422206,0.14115237,104950.0,104940.0,0.31807482]
[1748804422606,0.14115237,104950.0,104940.0,0.3247689]
[1748804422811,0.14115237,104950.0,104940.0,0.30854621]
[1748804423000,0.15068071,104950.0,104940.0,0.31807501]
[1748804423205,0.15068071,104950.0,104940.0,0.3342978]
[1748804423409,0.13162412,104950.0,104940.0,0.34545462]
[1748804423616,0.13162412,104950.0,104940.0,0.33713233]
[1748804423877,0.13162412,104950.0,104940.0,0.35498323]
[1748804424212,0.13162412,104950.0,104940.0,0.33713233]
[1748804424421,0.12209551,104950.0,104940.0,0.36167733]
[1748804424628,0.12209551,104950.0,104940.0,0.34382642]
[1748804424832,0.13162358,104950.0,104940.0,0.33713233]
[1748804425241,0.13162358,104950.0,104940.0,0.34382642]
[1748804425446,0.13162358,104950.0,104940.0,0.33713233]
[1748804425849,0.13162358,104950.0,104940.0,0.36167733]
[1748804426393,0.13162358,104950.0,104940.0,0.35863187]
[1748804426596,0.13162358,104950.0,104940.0,0.36168064]
[1748804427661,0.13162358,104950.0,104940.0,0.36168189]
[1748804428287,0.13162358,104950.0,104940.0,0.36168344]
[1748804428491,0.13162358,104950.0,104940.0,0.33713234]
[1748804428663,0.13162358,104950.0,104940.0,0.3616835]
[1748804428884,0.14115174,104950.0,104940.0,0.3616835]
[1748804429075,0.14115174,104950.0,104940.0,0.67676399]
[1748804429303,0.16657999,104950.0,104940.0,0.65890825]
[1748804429507,0.18237999,104950.0,104940.0,0.65221234]
[1748804429780,0.18237999,104950.0,104940.0,0.67676428]
[1748804429982,0.18237999,104950.0,104940.0,0.65221234]
[1748804430214,0.18237999,104950.0,104940.0,0.65890844]
[1748804430418,0.18237999,104950.0,104940.0,0.65221234]
[1748804430625,0.18237999,104950.0,104940.0,0.95221234]
[1748804430880,0.17285174,104950.0,104940.0,0.95221234]
[1748804431097,0.15705174,104950.0,104940.0,0.94268373]
[1748804431296,0.16657999,104950.0,104940.0,0.94268373]
[1748804431513,0.16657999,104950.0,104940.0,0.96723335]
[1748804431715,0.16657999,104950.0,104940.0,0.94268373]
[1748804431923,0.35714764,104950.0,104940.0,0.94268373]
[1748804432539,0.35714764,104950.0,104940.0,0.960538]
[1748804432670,0.35714764,104950.0,104940.0,0.94937908]
[1748804433092,0.35714764,104950.0,104940.0,0.94268373]
[1748804433313,0.35714764,104950.0,104940.0,0.960538]
[1748804433517,0.34356352,104950.0,104940.0,0.39890308]
[1748804433749,0.34356352,104950.0,104940.0,0.32090372]
[1748804433948,0.34356352,104950.0,104940.0,0.00304878]
[1748804434079,0.22158509,104940.0,104930.0,0.51818135]
[1748804434433,0.23111434,104940.0,104930.0,0.64142159]
[1748804434741,0.23111434,104940.0,104930.0,0.64508103]
[1748804434934,0.24064305,104940.0,104930.0,0.63675496]
[1748804435146,0.24064305,104940.0,104930.0,0.661309]
[1748804435298,0.24064305,104940.0,104930.0,0.68586053]
[1748804435496,0.24064305,104940.0,104930.0,0.69186053]
[1748804435701,0.24064305,104940.0,104930.0,0.99186053]
[1748804435911,0.24064305,104940.0,104930.0,0.99855588]
[1748804436119,0.24064305,104940.0,104930.0,0.99186053]
[1748804436937,0.24064305,104940.0,104930.0,1.0097148]
[1748804437141,0.23111434,104940.0,104930.0,0.68233074]
[1748804437342,0.23111434,104940.0,104930.0,0.70018503]
[1748804437677,0.23111434,104940.0,104930.0,0.39471492]
[1748804438020,0.22158509,104940.0,104930.0,0.07600692]
[1748804438247,0.22158509,104940.0,104930.0,0.0796544]
[1748804438473,0.22158509,104940.0,104930.0,0.05510306]
[1748804438853,0.22158509,104940.0,104930.0,0.0617995]
[1748804439094,0.22158509,104940.0,104930.0,0.05510306]
[1748804439527,0.22158509,104940.0,104930.0,0.07296003]
[1748804439985,0.22158509,104940.0,104930.0,0.05510306]
[1748804440188,0.63322509,104940.0,104930.0,0.05510306]
[1748804440417,0.63322509,104940.0,104930.0,0.06179937]
[1748804440610,0.63322509,104940.0,104930.0,0.07295987]
[1748804441117,0.63322509,104940.0,104930.0,0.05510306]
[1748804441323,0.63322509,104940.0,104930.0,0.06179936]
[1748804441490,0.63322509,104940.0,104930.0,0.05510306]
[1748804442082,0.63322509,104940.0,104930.0,0.06179936]
[1748804442301,0.63322509,104940.0,104930.0,0.07965616]
[1748804442927,0.63322509,104940.0,104930.0,0.06179936]
[1748804443114,0.63322509,104940.0,104930.0,0.07965616]
[1748804443324,0.63322509,104940.0,104930.0,0.07295986]
[1748804443731,0.63322509,104940.0,104930.0,0.05510306]
[1748804444126,0.63322509,104940.0,104930.0,0.07295986]
[1748804444304,0.63322509,104940.0,104930.0,0.05510306]
[1748804445577,0.63322509,104940.0,104930.0,0.06179938]
[1748804445990,0.63322509,104940.0,104930.0,0.07965623]
[1748804446406,0.63322509,104940.0,104930.0,0.05510306]
[1748804447359,0.63322509,104940.0,104930.0,0.06180079]
[1748804447559,0.63322509,104940.0,104930.0,0.05510306]
[1748804448401,0.63322509,104940.0,104930.0,0.07296378]
[1748804448568,0.63322509,104940.0,104930.0,0.07296369]
[1748804448785,0.63322509,104940.0,104930.0,0.05510306]
[1748804449431,0.63322509,104940.0,104930.0,0.07966142]
[1748804449794,0.63322509,104940.0,104930.0,0.07296369]
[1748804449977,0.63322509,104940.0,104930.0,0.06180079]
[1748804450204,0.63322509,104940.0,104930.0,0.05510306]
[1748804450650,0.73598509,104940.0,104930.0,0.05510306]
[1748804451282,0.73598509,104940.0,104930.0,0.07966162]
[1748804451707,0.73598509,104940.0,104930.0,0.05510306]
[1748804451917,0.63322509,104940.0,104930.0,0.05510306]
[1748804452127,0.73598509,104940.0,104930.0,0.05510306]
[1748804454091,1.13460278,104940.0,104930.0,0.05510306]
[1748804454336,5.70252194,104940.0,104930.0,0.05510306]
[1748804454542,5.79837624,104940.0,104930.0,0.05510306]
[1748804454949,6.11305624,104940.0,104930.0,0.05510306]
[1748804455336,6.06305624,104940.0,104930.0,0.04910306]
[1748804455489,6.11305624,104940.0,104930.0,0.04910306]
[1748804455732,6.11505624,104940.0,104930.0,0.05010306]
[1748804456335,6.12505624,104940.0,104930.0,0.05010306]
[1748804459154,5.72786779,104940.0,104930.0,0.05010306]
[1748804459385,6.14526779,104940.0,104930.0,0.05010306]
[1748804460391,6.12501624,104940.0,104930.0,0.05010306]
[1748804461252,6.12225624,104940.0,104930.0,0.05010306]
[1748804462450,5.80761624,104940.0,104930.0,0.05010306]
[1748804462653,6.12221624,104940.0,104930.0,0.05010306]
[1748804463869,5.70485624,104940.0,104930.0,0.05010306]
[1748804464084,6.12217624,104940.0,104930.0,0.05010306]
[1748804464932,1.13286024,104940.0,104930.0,0.05010306]
[1748804465143,1.06022509,104940.0,104930.0,0.05010306]
[1748804465352,1.07476594,104940.0,104930.0,0.05010306]
[1748804466391,0.52982509,104940.0,104930.0,0.05010306]
[1748804466605,0.52982509,104940.0,104930.0,0.06650306]
[1748804466820,0.63258509,104940.0,104930.0,0.37749077]
[1748804467029,0.02105723,104940.0,104930.0,0.482325]
[1748804467243,0.03058612,104940.0,104930.0,0.50966499]
[1748804467453,0.0401151,104940.0,104930.0,0.51271394]
[1748804467655,0.04964417,104940.0,104930.0,0.51939265]
[1748804467871,0.0401151,104940.0,104930.0,0.49490404]
[1748804468074,0.04764417,104940.0,104930.0,0.49390404]
[1748804468279,0.04764417,104940.0,104930.0,0.51171388]
[1748804468490,0.0401151,104940.0,104930.0,0.74314764]
[1748804468910,0.03058612,104940.0,104930.0,0.44314657]
[1748804469127,0.03058612,104940.0,104930.0,0.44314642]
[1748804469332,0.04011519,104940.0,104930.0,0.436468]
[1748804469538,0.04011519,104940.0,104930.0,0.41865906]
[1748804469741,0.04011519,104940.0,104930.0,0.436468]
[1748804469944,0.04011519,104940.0,104930.0,0.41865906]
[1748804470157,0.04011519,104940.0,104930.0,0.436468]
[1748804470363,0.04011519,104940.0,104930.0,0.41865906]
[1748804470578,0.03058612,104940.0,104930.0,0.41865906]
[1748804470798,0.002,104940.0,104930.0,0.41865906]
[1748804472067,0.002,104940.0,104930.0,0.42533687]
[1748804472273,0.002,104940.0,104930.0,0.44314436]
[1748804472476,0.002,104940.0,104930.0,0.44676507]
[1748804472685,0.02858349,104950.0,104940.0,0.25037175]
[1748804472890,0.02858349,104950.0,104940.0,0.68141871]
[1748804473095,0.01905551,104950.0,104940.0,0.6703038]
[1748804473303,0.01905551,104950.0,104940.0,0.66363487]
[1748804473514,0.01905551,104950.0,104940.0,0.81808759]
[1748804474146,0.02105551,104950.0,104940.0,0.81808759]
[1748804474595,0.03058358,104950.0,104940.0,0.81141867]
[1748804474725,0.03058358,104950.0,104940.0,0.81807073]
[1748804474926,0.04011183,104950.0,104940.0,0.79363487]
[1748804475541,0.03058358,104950.0,104940.0,0.79363487]
[1748804476272,0.04011174,104950.0,104940.0,0.79363487]
[1748804476470,0.03058358,104950.0,104940.0,0.79363487]
[1748804476655,0.02105551,104950.0,104940.0,0.79363487]
[1748804476853,0.02105551,104950.0,104940.0,0.79363482]
[1748804477097,0.03058358,104950.0,104940.0,0.79363482]
[1748804477271,0.03058358,104950.0,104940.0,0.81140633]
[1748804477473,0.03058358,104950.0,104940.0,0.79363482]
[1748804477474,0.02105542,104950.0,104940.0,0.79363482]
[1748804477689,0.0305834,104950.0,104940.0,0.81140631]
[1748804477891,0.0305834,104950.0,104940.0,0.80029913]
[1748804477892,0.04011156,104950.0,104940.0,0.80029913]
[1748804478103,0.0305834,104950.0,104940.0,0.80029914]
[1748804478336,0.0305834,104950.0,104940.0,0.81128634]
[1748804478337,0.04011147,104950.0,104940.0,0.81128634]
[1748804478541,0.04011147,104950.0,104940.0,0.79351482]
[1748804478690,0.04011147,104950.0,104940.0,0.81128634]
[1748804478892,0.04011147,104950.0,104940.0,0.81128635]
[1748804479098,0.04011147,104950.0,104940.0,0.79351482]
[1748804480342,0.04011147,104950.0,104940.0,0.80017914]
[1748804480560,0.02105551,104950.0,104940.0,0.81128632]
[1748804480795,0.02105551,104950.0,104940.0,0.79351481]
[1748804481009,0.02105551,104950.0,104940.0,0.81128622]
[1748804481240,0.01152762,104950.0,104940.0,0.79351481]
[1748804481455,0.002,104950.0,104940.0,0.80017907]
[1748804481668,0.02105523,104950.0,104940.0,0.79351481]
[1748804481874,0.002,104950.0,104940.0,0.79351481]
[1748804482081,0.01152752,104950.0,104940.0,0.79351481]
[1748804482291,0.002,104950.0,104940.0,0.79351481]
[1748804482493,0.01152752,104950.0,104940.0,0.79351481]
[1748804482919,0.02105523,104950.0,104940.0,0.79351481]
[1748804483124,0.02105523,104950.0,104940.0,0.8001727]
[1748804483336,0.02105523,104950.0,104940.0,0.79351481]
[1748804483771,0.002,104950.0,104940.0,0.79351481]
[1748804484094,0.002,104950.0,104940.0,0.81125513]
[1748804484294,0.002,104950.0,104940.0,0.79351481]
[1748804484740,0.002,104950.0,104940.0,0.81790744]
[1748804484946,0.04763099,104970.0,104960.0,0.21912999]
[1748804485289,0.04763099,104970.0,104960.0,0.64536429]
[1748804485290,0.0476308,104970.0,104960.0,0.64536429]
[1748804485649,0.04763126,104970.0,104960.0,0.64536429]
[1748804485850,0.04763172,104970.0,104960.0,0.64536447]
[1748804486013,0.04763172,104970.0,104960.0,0.65489136]
[1748804486235,0.04777769,104970.0,104960.0,0.65489136]
[1748804486459,0.04025116,104970.0,104960.0,0.66541816]
[1748804487040,0.04977769,104970.0,104960.0,0.66541816]
[1748804487664,0.04977769,104970.0,104960.0,0.65589136]
[1748804488291,0.04025116,104970.0,104960.0,0.66541816]
[1748804489119,0.04977769,104970.0,104960.0,0.66541816]
[1748804489908,0.01167186,104970.0,104960.0,0.66541816]
[1748804490106,0.02119784,104970.0,104960.0,0.66541816]
[1748804490310,0.030724,104970.0,104960.0,0.66541816]
[1748804491197,0.030724,104970.0,104960.0,0.6720971]
[1748804491421,0.030724,104970.0,104960.0,0.68322867]
[1748804491753,0.03072409,104970.0,104960.0,0.67209706]
[1748804491966,0.03072409,104970.0,104960.0,0.67209708]
[1748804492146,0.03072409,104970.0,104960.0,0.66541816]
[1748804492319,0.030724,104970.0,104960.0,0.66541816]
[1748804492490,0.030724,104970.0,104960.0,0.67209708]
[1748804492907,0.01167177,104970.0,104960.0,0.66541816]
[1748804493110,0.03072391,104970.0,104960.0,0.68990754]
[1748804493358,0.03072391,104970.0,104960.0,0.69295579]
[1748804493987,0.03072391,104970.0,104960.0,0.68990755]
[1748804494198,0.04025025,104970.0,104960.0,0.6929558]
[1748804494483,0.04025025,104970.0,104960.0,0.69294948]
[1748804495320,0.04025025,104970.0,104960.0,0.66846641]
[1748804495526,0.04025025,104970.0,104960.0,0.69295146]
[1748804495751,0.04025025,104970.0,104960.0,0.68627372]
[1748804495920,0.04025025,104970.0,104960.0,0.69295146]
[1748804495921,0.01167177,104970.0,104960.0,0.69295146]
[1748804496122,0.00214597,104970.0,104960.0,0.70197327]
[1748804496326,0.00214597,104970.0,104960.0,0.70197304]
[1748804496545,0.00214597,104970.0,104960.0,0.68416641]
[1748804496946,0.00214597,104970.0,104960.0,0.70197298]
[1748804497159,0.01167186,104970.0,104960.0,0.68416641]
[1748804497369,0.01167177,104970.0,104960.0,0.69084389]
[1748804497620,0.00967177,104970.0,104960.0,0.68316641]
[1748804498003,0.01167168,104970.0,104960.0,0.70097304]
[1748804498384,0.01167168,104970.0,104960.0,0.68316629]
[1748804498993,0.01167168,104970.0,104960.0,0.7076504]
[1748804499377,0.01167168,104970.0,104960.0,0.70097246]
[1748804499619,0.01167168,104970.0,104960.0,0.70764971]
[1748804499822,0.01167168,104970.0,104960.0,0.70764969]
[1748804500236,0.01167168,104970.0,104960.0,0.70460156]
[1748804500445,0.01167168,104970.0,104960.0,0.70764967]
[1748804500640,0.02119748,104970.0,104960.0,0.70764967]
[1748804500864,0.02119748,104970.0,104960.0,0.69194967]
[1748804501279,0.02119748,104970.0,104960.0,0.68527273]
[1748804501487,0.02119748,104970.0,104960.0,0.69195015]
[1748804501694,0.02119748,104970.0,104960.0,0.69195057]
[1748804501959,0.02119748,104970.0,104960.0,0.69195169]
[1748804502394,0.01167168,104970.0,104960.0,0.69195169]
[1748804502616,0.02119757,104970.0,104960.0,0.69195169]
[1748804503028,0.02119757,104970.0,104960.0,0.69196787]
[1748804503242,0.02119757,104970.0,104960.0,0.66746627]
[1748804503444,0.02119757,104970.0,104960.0,0.69562792]
[1748804503660,0.02119757,104970.0,104960.0,0.6711241]
[1748804503865,0.02119757,104970.0,104960.0,0.67414913]
[1748804504071,0.02119757,104970.0,104960.0,0.69197009]
[1748804504526,0.02119757,104970.0,104960.0,0.69562792]
[1748804505065,0.02119757,104970.0,104960.0,0.6956519]
[1748804505289,0.02119757,104970.0,104960.0,0.69566089]
[1748804505515,0.02119757,104970.0,104960.0,0.6711241]
[1748804505702,0.02119757,104970.0,104960.0,0.68896945]
[1748804505899,0.02119757,104970.0,104960.0,0.6711241]
[1748804506146,0.02119757,104970.0,104960.0,0.69566145]
[1748804506351,0.02119748,104970.0,104960.0,0.6943161]
[1748804506559,0.01167168,104970.0,104960.0,0.71216145]
[1748804507144,0.00214597,104970.0,104960.0,0.71216145]
[1748804507353,0.00214597,104970.0,104960.0,0.69431723]
[1748804507538,0.00214597,104970.0,104960.0,0.68762503]
[1748804507740,0.01167177,104970.0,104960.0,0.70547089]
[1748804507900,0.01167177,104970.0,104960.0,0.71216309]
[1748804508102,0.01167177,104970.0,104960.0,0.7121631]
[1748804508315,0.00214597,104970.0,104960.0,0.7121631]
[1748804509098,0.00214597,104970.0,104960.0,0.7054709]
[1748804509302,0.00214597,104970.0,104960.0,0.68762503]
[1748804509593,0.01167168,104970.0,104960.0,0.69431723]
[1748804509775,0.01167168,104970.0,104960.0,0.68762503]
[1748804509776,0.00214597,104970.0,104960.0,0.68762503]
[1748804509986,0.00214597,104970.0,104960.0,0.7121631]
[1748804510191,0.00214597,104970.0,104960.0,0.71216328]
[1748804510750,0.00214597,104970.0,104960.0,0.71216377]
[1748804511219,0.00214597,104970.0,104960.0,0.69431741]
[1748804511420,0.00214597,104970.0,104960.0,0.70547185]
[1748804511657,0.00214597,104970.0,104960.0,0.71216441]
[1748804512564,0.00214597,104970.0,104960.0,0.71216457]
[1748804512699,0.00214597,104970.0,104960.0,0.71216501]
[1748804512904,0.00214597,104970.0,104960.0,0.68897229]
[1748804513103,0.01167177,104970.0,104960.0,0.69566501]
[1748804513488,0.01167177,104970.0,104960.0,0.67112503]
[1748804513686,0.01167168,104970.0,104960.0,0.67781775]
[1748804513911,0.01167168,104970.0,104960.0,0.67112503]
[1748804514149,0.01167168,104970.0,104960.0,0.68897229]
[1748804514361,0.01167168,104970.0,104960.0,0.67112503]
[1748804514581,0.00214597,104970.0,104960.0,0.67781775]
[1748804514735,0.00214597,104970.0,104960.0,0.67112503]
[1748804515230,0.00214597,104970.0,104960.0,0.36373773]
[1748804515454,0.02119757,104970.0,104960.0,0.67717773]
[1748804515689,0.01167168,104970.0,104960.0,0.67717773]
[1748804515984,0.02119748,104970.0,104960.0,0.70172314]
[1748804516187,0.02119748,104970.0,104960.0,0.70172324]
[1748804516399,0.02119748,104970.0,104960.0,0.70172351]
[1748804517017,0.01167168,104970.0,104960.0,0.67718326]
[1748804517166,0.02119757,104970.0,104960.0,0.7017235]